Cogmind - Beta 14 @@@ ROGUE MODE // 2025.01.09 @ 09:12:05 Player: Niko Result: Destroyed by NA-6FD(R) with Subdweller Laser Performance ------------- Evolutions (0) 0 Regions Visited (1) 200 Robots Destroyed (27) 135 Value Destroyed (592) 592 Prototype IDs (0) 0 Alien Tech Used (0) 0 Bonus (0) 0 TOTAL SCORE: 927 Bonus ------- None Cogmind --------- Core Integrity 0/250 Matter 204/450 Energy 100/100 System Corruption 1% Temperature Cool (6) Movement Core (750) Ox14 Location -10/Materials Parts ------- > --- POWER (1) -------- (None) > --- PROPULSION (2) --- (None) > --- UTILITY (2) ------ High-capacity Storage Unit Large Matter Pod > --- WEAPON (2) ------- (None) > --- INVENTORY (20) --- Light Ion Engine Heat Sink Improved Heat Sink Large Matter Pod (0) Terrain Scanner Core Shielding Medium Laser Beam Cannon Grenade Launcher Peak State ------------ > --- POWER ------------ Ion Engine > --- PROPULSION ------- Light Treads Light Treads > --- UTILITY ---------- Large Matter Pod Terrain Scanner > --- WEAPON ----------- Grenade Launcher Grenade Launcher > --- INVENTORY -------- Light Ion Engine Medium Laser Beam Cannon Assault Rifle Light Assault Rifle [Rating: 7] Favorites ----------- Power Ion Engine Engine Ion Engine Propulsion Light Treads Treads Light Treads Utility Large Matter Pod Device Terrain Scanner Storage Large Matter Pod Weapon Grenade Launcher Energy Gun Medium Laser Ballistic Gun Assault Rifle Launcher Grenade Launcher Special Weapon Mining Laser Build | -11 -10 ------- Run | Yrd Mat Slots Evolved . | . . Power . | . . Propulsion . | . . Utility . | . . Weapon . | . . Parts Attached 19 | 5 14 Power 2 | 1 1 Engine 2 | 1 1 Core . | . . Reactor . | . . Propulsion 3 | 2 1 Treads 3 | 2 1 Leg . | . . Wheel . | . . Hover . | . . Flight . | . . Utility 4 | . 4 Device 2 | . 2 Storage 2 | . 2 Processor . | . . Hackware . | . . Protection . | . . Artifact . | . . Weapon 10 | 2 8 Energy Gun 1 | . 1 Energy Cannon . | . . Ballistic Gun 4 | 2 2 Ballistic Cannon . | . . Launcher 4 | . 4 Special Weapon 1 | . 1 Impact Weapon . | . . Slashing Weapon . | . . Piercing Weapon . | . . Special Melee Weapon . | . . Unidentified Prototypes . | . . Parts Lost 8 | . 8 Power 1 | . 1 Propulsion 2 | . 2 Utility 1 | . 1 Weapon 4 | . 4 Highest Loss Streak 3 | . 3 To Critical Strikes . | . . Average Slot Usage (%) 85 | . 85 Engine 13 | . 13 Treads 23 | . 23 Device 6 | . 6 Storage 15 | . 15 Energy Gun 3 | . 3 Ballistic Gun 6 | . 6 Launcher 13 | . 13 Special Weapon 2 | . 2 Peak Build Rating 7 | 5 7 Average Rating 5 | 3 6 On Entrance 2 | . 5 Naked Turns . | . . Heaviest Build 53 | 8 53 Greatest Support 40 | 40 40 Greatest Overweight (x) 17 | . 17 Average Overweight (x) . | . . Largest Inventory Capacity 20 | 5 20 Average Capacity 11 | 5 11 Most Carried 9 | 5 9 Average Carried 5 | 1 5 Final Capacity 20 | 5 20 Final Carried 9 | 1 9 Class Distribution -------------------- 100% | Mutant Dominant Class ---------------- Mutant | -10/Materials Resources | -11 -10 ----------- Run | Yrd Mat Matter Collected 550 | 208 342 Remotely . | . . Salvage Created 443 | . 443 Parts 35 | . 35 Haulers Intercepted 1 | . 1 Recyclers Shooed 1 | . 1 Parts Field Recycled . | . . Retrieved Matter . | . . Parts Self-Destructed . | . . Prevented . | . . Kills | -11 -10 ------- Run | Yrd Mat Combat Hostiles Destroyed 16 | . 16 Guns 5 | . 5 AOE 11 | . 11 Classes Destroyed 8 | . 8 Worker 1 | . 1 Builder 3 | . 3 Hauler 1 | . 1 Recycler 1 | . 1 Operator 2 | . 2 Watcher 3 | . 3 Swarmer 8 | . 8 Grunt 8 | . 8 Best Kill Streak 7 | . 7 Combat Bots Only 3 | . 3 Max Kills in Single Turn 3 | . 3 Gunslinging . | . . Exploded 3 | . 3 Melee . | . . Uniques/NPCs Destroyed . | . . Combat | -11 -10 -------- Run | Yrd Mat Hostile Shots Fired 71 | . 71 Missed 14 | . 14 Damage Taken 980 | . 980 Core 258 | . 258 Absorbed by Shields . | . . Core Remaining (%) 100 | 100 . Volleys Fired 40 | . 40 Largest 2 | . 2 Hottest 100 | . 100 Shots Fired 67 | . 67 Gun 35 | . 35 Cannon . | . . Launcher 29 | . 29 Special 3 | . 3 Kinetic 17 | . 17 Thermal 21 | . 21 Explosive 29 | . 29 Electromagnetic . | . . Robot Hit Streak 17 | . 17 Robot Miss Streak 2 | . 2 Penetration Max . | . . Secondary Targets 1 | . 1 Max Gunslinging Chain 1 | . 1 Shots Hit Robots 33 | . 33 Core Hits 47 | . 47 Critical Kills . | . . Critical Parts Destroyed . | . . Critical Strikes 2 | . 2 Burn 2 | . 2 Melee Attacks . | . . Impact . | . . Slashing . | . . Piercing . | . . Sneak Attacks . | . . Combat Hostiles . | . . Follow-up Attacks . | . . Damage Inflicted 1522 | . 1522 Guns 314 | . 314 Cannons . | . . Explosions 1134 | . 1134 Melee . | . . Ramming 2 | . 2 Kinetic 125 | . 125 Thermal 261 | . 261 Explosive 1134 | . 1134 Electromagnetic . | . . Impact . | . . Slashing . | . . Piercing . | . . Highest Corruption 1 | . 1 Average Corruption 1 | . 1 Corruption Purged . | . . Corruption Blocked . | . . Effects 5 | . 5 Message Errors 1 | . 1 Matter Fused 2 | . 2 Energy Discharges 1 | . 1 Misfires 1 | . 1 Overload Shots . | . . Overflow Damage 47 | . 47 Projectiles . | . . Explosions 47 | . 47 Melee . | . . Knockbacks . | . . Impact . | . . Kinetic . | . . Secondary . | . . Self-Inflicted Damage 188 | . 188 Shots 7 | . 7 Rammed 1 | . 1 Targets Rammed 1 | . 1 Kicked . | . . Crushed . | . . Highest Temperature 132 | . 132 Average Temperature 57 | . 57 Received Heat Transfer 324 | . 324 Siege Activations . | . . Robots Corrupted . | . . Combat Hostiles . | . . Parts Fried . | . . Impact Corruptions . | . . Robots Melted . | . . Combat Hostiles . | . . Parts Melted 3 | . 3 Heat Transferred 853 | . 853 Parts Sabotaged . | . . Parts Stolen . | . . Parts Stripped . | . . Power Chain Reactions . | . . Alert | -11 -10 ------- Run | Yrd Mat Peak Influence 370 | . 370 Initial . | . . Average 192 | . 200 Maximum Alert Level 1 | . 1 Low Security (%) 41 | 100 38 Level 1 58 | . 61 Level 2 . | . . Level 3 . | . . Level 4 . | . . Level 5 . | . . High Security . | . . Max Security . | . . Squads Dispatched 3 | . 3 Investigation 2 | . 2 Extermination . | . . Reinforcement 1 | . 1 Assault . | . . Garrison . | . . Intercept . | . . Searches Triggered . | . . Construction Impeded . | . . Haulers Reinforced . | . . Active Scanning Responses . | . . Cargo Convoy Interrupts . | . . Stealth | -11 -10 --------- Run | Yrd Mat Distress Signals 3 | . 3 Communications Jammed . | . . Distress Signals . | . . Times Spotted 33 | . 33 Peak Tracking Total 6 | . 6 Tactical Retreats 1 | . 1 Traps | -11 -10 ------- Run | Yrd Mat Traps Triggered 4 | . 4 Indirectly . | . . Trap Hack Attempts . | . . Triggered . | . . Disarmed . | . . Reprogrammed . | . . Reused . | . . Traps Extracted . | . . Installed . | . . Triggered . | . . Machines | -11 -10 ---------- Run | Yrd Mat Machines Disabled 11 | . 11 Max in Single Turn 2 | . 2 Machines Repaired . | . . Machines Dismantled . | . . Machines Sabotaged . | . . Overloaded Fab Kills . | . . Hacking | -11 -10 --------- Run | Yrd Mat Machines Accessed 1 | . 1 Terminals . | . . Fabricators . | . . Repair Stations . | . . Recycling Units 1 | . 1 Scanalyzers . | . . Garrison Access . | . . Total Hacks 4 | . 4 Successful 2 | . 2 Failed 2 | . 2 Catastrophic . | . . Database Lockouts . | . . Manual . | . . Terminals . | . . Fabricators . | . . Repair Stations . | . . Recycling Units 4 | . 4 Scanalyzers . | . . Garrison Access . | . . Terminal Hacks . | . . Fabricator Hacks . | . . Repair Station Hacks . | . . Recycling Unit Hacks 2 | . 2 Process 1 | . 1 Retrieve Matter 1 | . 1 Scanalyzer . | . . Garrison Access Hacks . | . . Unauthorized Hacks . | . . Terminals . | . . Fabricators . | . . Repair Stations . | . . Recycling Units . | . . Scanalyzers . | . . Garrison Access . | . . Data Cores Recovered . | . . Used . | . . Hacking Detections 1 | . 1 Full Trace Events 1 | . 1 Feedback Events . | . . Feedback Blocked . | . . Robot Schematics Acquired . | . . Robots Built . | . . Authchips . | . . Time . | . . Total Robot Build Rating . | . . Part Schematics Acquired . | . . Parts Built . | . . Authchips . | . . Time . | . . Total Part Build Rating . | . . Parts Repaired . | . . Time . | . . Parts Recycled . | . . Recycled Matter 61 | . 61 Retrieved Matter 61 | . 61 Retrieved Components . | . . Parts Scanalyzed . | . . Part Schematics Acquired . | . . Parts Damaged . | . . Bothacking | -11 -10 ------------ Run | Yrd Mat Used RIF Installer . | . . Robots Hacked . | . . Non-combat . | . . Combat . | . . Robot Hacks Applied . | . . Relay Couplers Released . | . . Fabnet Peak Effective % . | . . Robots Rewired . | . . Allies Hacked . | . . Hacks Repelled . | . . Allies | -11 -10 -------- Run | Yrd Mat Total Allies . | . . Largest Group . | . . Highest-Rated Group . | . . Highest-Rated Ally . | . . Total Orders . | . . Ally Attacks . | . . Total Damage . | . . Kills . | . . Allies Corrupted . | . . Allies Melted . | . . Intel | -11 -10 ------- Run | Yrd Mat Robot Analysis Total . | . . Derelict Logs Recovered . | . . Drone Launches . | . . Drone Recoveries . | . . Exploration | -11 -10 ------------- Run | Yrd Mat Turns Passed 1346 | 50 1296 Spaces Moved 611 | 39 572 Core 28 | 21 7 Treads 583 | 18 565 Legs . | . . Wheels . | . . Hover . | . . Flight . | . . Fastest Speed 50 | 50 160 Average Speed 194 | 100 201 Slowest Speed 900 | 160 900 Overloaded Moves . | . . Propulsion Burnouts . | . . Robots Hopped . | . . Cave-ins Triggered . | . . Exploration Rate (%) 36 | 4 69 Regions Visited 1 Branch Regions . Pre-discovered Areas . | . . Known Exits Taken . | . . Unknown Exits Taken 1 | 1 . Scrap Searched . | . . Spaces Dug . | . . Terrain Destroyed 191 | . 191 Melee . | . . Projectile . | . . AOE 191 | . 191 Terrain Rammed . | . . Walls Destroyed . | . . Machines Disabled . | . . Actions | -11 -10 --------- Run | Yrd Mat Total 699 | 49 650 Wait 3 | . 3 Move 611 | 39 572 Hop . | . . Pick Up 19 | 5 14 Fast Attach 8 | 1 7 Attach 10 | 4 6 Detach 1 | . 1 Swap 1 | . 1 Drop 5 | . 5 Fire 40 | . 40 Melee . | . . Ram . | . . Kick . | . . Crush 1 | . 1 Escape Stasis . | . . Rewire . | . . Trap . | . . Miscellaneous . | . . Route ------- -11/Scrapyard -10/Materials (discovered 3 exits: [*Mat x2] / [*Min]) History --------- Turn | Location | Event 3 | -11/Scrapyard | Discovered new exit (range 15) 51 | -11/Scrapyard | Entered Materials 310 | -10/Materials | Build established: Mutant 380 | -10/Materials | Discovered new exit (range 6) 577 | -10/Materials | Discovered new exit (range 16) 881 | -10/Materials | Discovered new exit (range 3) 1251 | -10/Materials | Derelicts attacked the area 1334 | -10/Materials | Core integrity fell below 50% 1342 | -10/Materials | Core integrity fell below 20% 1347 | -10/Materials | Destroyed by NA-6FD(R) with Subdweller Laser Last Messages --------------- Acquired 47 matter. ALERT: Derelict incursion detected, dispatching patrols to target area. Lgt. Treads destroyed. G-47 Trooper suffers critical hit (Burn). Aluminum Leg melted. G-47 Trooper destroyed. Switching to secondary target: G-34 Mercenary. Sml. Laser melted. G-34 Mercenary destroyed. R-06 Scavenger destroyed. R-06 Scavenger collects Aluminum Leg. O-16 Technician destroyed. R-06 Scavenger destroyed. Acquired Imp. Heat Sink. Acquired 54 matter. Acquired 47 matter. Assault Rifle destroyed. Ion Engine destroyed. Med. Laser destroyed. Map ----- +----------------------------------------------------+ | | | | | | | | | | | | | | | | | | | | | | | ########?????????????????????????????????#???????? | | # """ #??????????????????????????????#??????????? | | # "T" #??????????????????????????###????????????? | | # ###????????#######?????##### #####????????? | | # !! + #?????#### #?????# #????????? | | # ! # #?????# ##??###"""""""" ########## | | # !! # ####### #### " ## | | ######## + ##### ## ####### | | ???????# #### " # # "# ##???#? | | ???????# #??# """ # < # ### ##???? | | ???????# =#??# [""" # # ##### | | ???????# #??# """ + + = ###= ###""" | | ???????# #### """ # # !|! [## ##"|| | | ???????# # # # # ##"" | | ??????######## ##########@ ## #### ## ## [ | | ????? # ######### # ## ###### ## < | | ?????? + RR #########?#?# ## | | ?????????????# R T #????##?#???# ## | | ?????????????# =!= = ##??????????# ### | | ?????????????# [%#### #??????????## #?## | | ?????????????#+##% !#??#######?????####??# #### | | ????????????????#! #??????????#??## #?# | | ??????????????? ; #?????????????# ## | | ?????????????? # #??????????????# # | | ????????????? # #??????????????# # ###+# | | ????????????###?# #??????????#??##### ## # | | ????????????????# #?????????? ??# + | | ????????????????# #?????"????????# # | | ????????????????# #?????"?????? ## # | | ????????????????+ +?"???????????## # | | ????????????????# # ????????????# # | | ????????????????# # ???????????## ##### | | ????????????????# ?????????### ##?#? | | ????????????????# ########### #?#?# | | ????????????????# ! "" ##### | | ????????????? ??# ! ^ " ## ## | | ????????????????? | | ?????????????????? | | ?????????????????? " "" | +----------------------------------------------------+ Best States ------------- Heat Dissipation 25 Energy Generation 10 Energy Capacity 250 Matter Stores 258 Matter Capacity 450 Sight Range 16 Terrain Scan Range 14 Terrain Scan Density 10 Evasion (%) 50 Recoil Reduction 2 Item Schematics ----------------- None Robot Schematics ------------------ None Fabricated ------------ Nothing Alien Tech Used ----------------- None Achievements -------------- Maybe Next Time I'll Detach My Launcher Challenges ------------ None Game ------ Seed HardlightCoolantDriver Manual? 0 Play Time 00:12:51 Cumulative 22.6 hours Start 2025.01.09 @ 08:46:14 End 2025.01.09 @ 09:12:05 Sessions 1 Manual Loads 0 Difficulty Rogue Special Mode None Game No. 41 Rogue 41 Adventurer 0 Explorer 0 Win Type - Total 0 Types 0/0/0/0/0/0/0/0/0 Lore% 14 Gallery% 24 Achievement% 24 Wizard Run 0 Options --------- Layout 1 ASCII 0 Keyboard 0 Movement Mouse Keybinds 0 Fullscreen 1 Font 24/Smallcaps Map View 50x35 Zoom Use 0% Tactical HUD 0 Map Filters NONE Filters NONE Steam 1 RUN: 4e4fc4bd-7bb8-4e30-849f-aa1c9234eb7a